{"text_format":"1","workbook":"xlsx","n_sheets":5,"sheets":["ДСП","Фасады","Столешницы","Фурнитура","Спецификация"],"not_rendered":{"charts":0,"images":0,"macros":1,"external_links":0,"defined_names":0,"comments":0,"pivot_tables":0},"unopened":[],"bounds":{"document_bytes":16777216,"sheet_cells":100000,"rows_first":2000,"rows_last":500,"rows_between":2000,"halvings":0,"cell_chars":16384,"cell_head_chars":4096},"cells_cut":0,"cells_raw":0,"read":"whole","date_system":"1900"}

{"sheet":"ДСП","index":0,"n_rows":18,"n_cols":7,"rows_kept":18,"cut":false,"hidden":false,"merged":[[154,3,154,6],[1,0,1,6]]}
[]
["ПРАЙС на ДСП"]
["№","Наименование","Производитель","м2","Цена за м2","Стоимость","Выбор +"]
[1,"ДСП кухня","Egger (Австрия)16 мм",{"$f":"C153+C155","v":0},1700,{"$f":"D4*E4","v":0},"+"]
[2,"ДСП кухня","Kronospan (Россия)16 мм",{"$f":"C153+C155","v":0},1700,{"$f":"D5*E5","v":0}]
[3,"ДСП кухня","Lamarty (Польша)16 мм",{"$f":"C153+C155","v":0},1700,0]
[4,"ДСП кухня","Шексна  (Россия) 16 мм",{"$f":"C153","v":0},1500,0]
[5,"ДСП кухня","Монза Россия 16 мм",{"$f":"C153+C155","v":0},1500,0]
[6,"ДСП","Egger       (Австрия )16 мм",0,1300,{"$f":"D9*E9","v":0}]
[7,"ДСП","Kronospan (Россия) 16 мм",0,1250,{"$f":"D10*E10","v":0}]
[8,"ДСП","Lamarty (Польша) 16 мм",0,1250,0]
[9,"ДСП","Шексна (Россия)16 мм",0,1200,0]
[10,"ДСП","Монза     (Россия) 16 мм",0,1200,0]
[11,"ДСП","Egger Австрия 32 мм",0,1700,{"$f":"D14*E14","v":0}]
[12,"ДСП","Kronospan (Россия) 32 мм",0,1700,{"$f":"D15*E15","v":0}]
[13,"ДСП","Lamarty (Польша )32 мм",0,1700,0]
[14,"ДСП","Шексна (Россия) 32 мм",0,1500,0]
[15,"ДСП","Монза     (Россия) 32 мм",0,1500,0]

{"sheet":"Фасады","index":1,"n_rows":60,"n_cols":7,"rows_kept":60,"cut":false,"hidden":false,"merged":[[1,0,1,6]]}
[]
["Прайс на фасады и материалы"]
["№","Наименование","Производитель","м2","Цена за м2","Стоимость","Выбор +"]
[1,"Фасад МДФ пленка","ЭКМИ Россия матовая",0,3000,{"$f":"Таблица14[[#This Row],[м2]]*Таблица14[[#This Row],[Цена за м2]]","v":0}]
[2,"Фасад МДФ пленка","ЭКМИ Россия глянцевая",0,3500,{"$f":"Таблица14[[#This Row],[м2]]*Таблица14[[#This Row],[Цена за м2]]","v":0}]
[3,"Фасад МДФ пленка","ЭКМИ Россия металлик",5,4000,{"$f":"Таблица14[[#This Row],[м2]]*Таблица14[[#This Row],[Цена за м2]]","v":20000},"+"]
[4,"Фасад МДФ пленка","Италия",1,5000,{"$f":"Таблица14[[#This Row],[м2]]*Таблица14[[#This Row],[Цена за м2]]","v":5000},"+"]
[5,"Фасад МДФ эмаль","ORACAL Италия матовая",0,5000,{"$f":"Таблица14[[#This Row],[м2]]*Таблица14[[#This Row],[Цена за м2]]","v":0}]
[6,"Фасад МДФ эмаль","ORACAL Италия глянцевая",0,5500,{"$f":"Таблица14[[#This Row],[м2]]*Таблица14[[#This Row],[Цена за м2]]","v":0}]
[7,"Фасад МДФ эмаль","ORACAL Италия металлик",0,5500,{"$f":"Таблица14[[#This Row],[м2]]*Таблица14[[#This Row],[Цена за м2]]","v":0}]
[8,"Фасад МДФ пластик в ПВХ кромке","ARPA Италия матовый",0,6000,{"$f":"Таблица14[[#This Row],[м2]]*Таблица14[[#This Row],[Цена за м2]]","v":0}]
[9,"Фасад МДФ пластик в ПВХ кромке","ARPA Италия глянец",0,6500,{"$f":"Таблица14[[#This Row],[м2]]*Таблица14[[#This Row],[Цена за м2]]","v":0}]
[10,"Фасад МДФ пластик в алюмин.рамке","ARPA Италия матовый",0,6000,{"$f":"Таблица14[[#This Row],[м2]]*Таблица14[[#This Row],[Цена за м2]]","v":0}]
[11,"Фасад МДФ пластик в ПВХ кромке","ARPA Италия глянец",0,6500,{"$f":"Таблица14[[#This Row],[м2]]*Таблица14[[#This Row],[Цена за м2]]","v":0}]
[12,"Фасад рамочный ","AGT Турция",0,3500,{"$f":"Таблица14[[#This Row],[м2]]*Таблица14[[#This Row],[Цена за м2]]","v":0}]
[13,"Фасад рамочный ","Россия",0,3000,{"$f":"Таблица14[[#This Row],[м2]]*Таблица14[[#This Row],[Цена за м2]]","v":0}]
[14,"Фасад UY в ПВХ кромке","AGT Турция",0,5500,{"$f":"Таблица14[[#This Row],[м2]]*Таблица14[[#This Row],[Цена за м2]]","v":0}]
[15,"Фасад UY в алюмин.рамке","AGT Турция",0,6000,{"$f":"Таблица14[[#This Row],[м2]]*Таблица14[[#This Row],[Цена за м2]]","v":0}]
[16,"Фасад ЛДСП в ПВХ кромке","Россия",0,1800,{"$f":"Таблица14[[#This Row],[м2]]*Таблица14[[#This Row],[Цена за м2]]","v":0}]
[17,"Фасад ЛДСП в алюмин.рамке","Россия",0,2000,{"$f":"Таблица14[[#This Row],[м2]]*Таблица14[[#This Row],[Цена за м2]]","v":0}]
[18,"Фасад алюминиевый под стекло(+)","Россия",0.4,6000,{"$f":"Таблица14[[#This Row],[м2]]*Таблица14[[#This Row],[Цена за м2]]","v":2400}]
[19,null,null,0,null,{"$f":"Таблица14[[#This Row],[м2]]*Таблица14[[#This Row],[Цена за м2]]","v":0}]
[20,"Фасад гнутый пленка ","ЭКМИ Россия матовая",0,3000,{"$f":"Таблица14[[#This Row],[м2]]*Таблица14[[#This Row],[Цена за м2]]","v":0}]
[21,"Фасад гнутый пленка ","ЭКМИ Россия глянцевая",0,3500,{"$f":"Таблица14[[#This Row],[м2]]*Таблица14[[#This Row],[Цена за м2]]","v":0}]
[22,"Фасад гнутый пленка ","ЭКМИ Россия металлик",0,4000,{"$f":"Таблица14[[#This Row],[м2]]*Таблица14[[#This Row],[Цена за м2]]","v":0}]
[23,"Фасад гнутый эмаль ","ORACAL Италия матовая",0,5000,{"$f":"Таблица14[[#This Row],[м2]]*Таблица14[[#This Row],[Цена за м2]]","v":0}]
[24,"Фасад гнутый эмаль ","ORACAL Италия глянцевая",0,5500,{"$f":"Таблица14[[#This Row],[м2]]*Таблица14[[#This Row],[Цена за м2]]","v":0}]
[25,"Фасад гнутый эмаль ","ORACAL Италия металлик",0,5500,{"$f":"Таблица14[[#This Row],[м2]]*Таблица14[[#This Row],[Цена за м2]]","v":0}]
[26,"Фасад гнутый пластик в ПВХ ","ARPA Италия матовый",0,6000,{"$f":"Таблица14[[#This Row],[м2]]*Таблица14[[#This Row],[Цена за м2]]","v":0}]
[27,"Фасад гнутый пластик в ПВХ ","ARPA Италия глянец",0,6500,{"$f":"Таблица14[[#This Row],[м2]]*Таблица14[[#This Row],[Цена за м2]]","v":0}]
[28,"Фотопечать","каталог",0,null,{"$f":"Таблица14[[#This Row],[м2]]*Таблица14[[#This Row],[Цена за м2]]","v":0}]
[29,"Зеркало","серебро",0,null,{"$f":"Таблица14[[#This Row],[м2]]*Таблица14[[#This Row],[Цена за м2]]","v":0}]
[30,"Зеркало","бронза",0,null,{"$f":"Таблица14[[#This Row],[м2]]*Таблица14[[#This Row],[Цена за м2]]","v":0}]
[31,"Зеркало","сатин",0,null,{"$f":"Таблица14[[#This Row],[м2]]*Таблица14[[#This Row],[Цена за м2]]","v":0}]
[32,"Зеркало","пескоструй",0,null,{"$f":"Таблица14[[#This Row],[м2]]*Таблица14[[#This Row],[Цена за м2]]","v":0}]
[33,"Зеркало",null,0,null,{"$f":"Таблица14[[#This Row],[м2]]*Таблица14[[#This Row],[Цена за м2]]","v":0}]
[34,"Стекло","крашенное",0,null,{"$f":"Таблица14[[#This Row],[м2]]*Таблица14[[#This Row],[Цена за м2]]","v":0}]
[35,"Стекло","пескоструй",0,null,{"$f":"Таблица14[[#This Row],[м2]]*Таблица14[[#This Row],[Цена за м2]]","v":0}]
[36,"Стекло","тонированное",0,null,{"$f":"Таблица14[[#This Row],[м2]]*Таблица14[[#This Row],[Цена за м2]]","v":0}]
[37,"Стекло","бцв.обычное",0,null,{"$f":"Таблица14[[#This Row],[м2]]*Таблица14[[#This Row],[Цена за м2]]","v":0}]
[38,"Стекло","каталог",0,null,{"$f":"Таблица14[[#This Row],[м2]]*Таблица14[[#This Row],[Цена за м2]]","v":0}]
[39,"Искуственная кожа",null,0,null,{"$f":"Таблица14[[#This Row],[м2]]*Таблица14[[#This Row],[Цена за м2]]","v":0}]
[40,"Пластики ","Siby",0,null,{"$f":"Таблица14[[#This Row],[м2]]*Таблица14[[#This Row],[Цена за м2]]","v":0}]
[41,"Метакриловое стекло",null,0,null,{"$f":"Таблица14[[#This Row],[м2]]*Таблица14[[#This Row],[Цена за м2]]","v":0}]
[42,"Ротанг",null,0,null,{"$f":"Таблица14[[#This Row],[м2]]*Таблица14[[#This Row],[Цена за м2]]","v":0}]
[43,"Бамбук",null,0,null,{"$f":"Таблица14[[#This Row],[м2]]*Таблица14[[#This Row],[Цена за м2]]","v":0}]
[44,"Триплекс",null,0,null,{"$f":"Таблица14[[#This Row],[м2]]*Таблица14[[#This Row],[Цена за м2]]","v":0}]
[45,null,null,0,null,{"$f":"Таблица14[[#This Row],[м2]]*Таблица14[[#This Row],[Цена за м2]]","v":0}]
[46,null,null,0,null,{"$f":"Таблица14[[#This Row],[м2]]*Таблица14[[#This Row],[Цена за м2]]","v":0}]
[47,null,null,0,null,{"$f":"Таблица14[[#This Row],[м2]]*Таблица14[[#This Row],[Цена за м2]]","v":0}]
[48,null,null,0,null,{"$f":"Таблица14[[#This Row],[м2]]*Таблица14[[#This Row],[Цена за м2]]","v":0}]
[49,null,null,0,null,{"$f":"Таблица14[[#This Row],[м2]]*Таблица14[[#This Row],[Цена за м2]]","v":0}]
[50,null,null,0,null,{"$f":"Таблица14[[#This Row],[м2]]*Таблица14[[#This Row],[Цена за м2]]","v":0}]
[51,null,null,0,null,{"$f":"Таблица14[[#This Row],[м2]]*Таблица14[[#This Row],[Цена за м2]]","v":0}]
[52,null,null,0,null,{"$f":"Таблица14[[#This Row],[м2]]*Таблица14[[#This Row],[Цена за м2]]","v":0}]
[53,null,null,0,null,{"$f":"Таблица14[[#This Row],[м2]]*Таблица14[[#This Row],[Цена за м2]]","v":0}]
[54,null,null,0,null,{"$f":"Таблица14[[#This Row],[м2]]*Таблица14[[#This Row],[Цена за м2]]","v":0}]
[55,null,null,0,null,{"$f":"Таблица14[[#This Row],[м2]]*Таблица14[[#This Row],[Цена за м2]]","v":0}]
[56,null,null,0,null,{"$f":"Таблица14[[#This Row],[м2]]*Таблица14[[#This Row],[Цена за м2]]","v":0}]
[57,null,null,0,null,{"$f":"Таблица14[[#This Row],[м2]]*Таблица14[[#This Row],[Цена за м2]]","v":0}]

{"sheet":"Столешницы","index":2,"n_rows":18,"n_cols":6,"rows_kept":18,"cut":false,"hidden":false,"merged":[]}
[]
[]
["Наименование","Производитель","Кол-во шт","Цена за шт","Стоимость","Выбор +"]
["Столешница          3050 на 600","Россия 38 мм",1,4500,{"$f":"Таблица145[[#This Row],[Кол-во шт]]*Таблица145[[#This Row],[Цена за шт]]","v":4500}]
["Столешница","Италия 28 мм",1,5000,{"$f":"Таблица145[[#This Row],[Кол-во шт]]*Таблица145[[#This Row],[Цена за шт]]","v":5000}]
["Столешница","Италия 38 мм",1,6000,{"$f":"Таблица145[[#This Row],[Кол-во шт]]*Таблица145[[#This Row],[Цена за шт]]","v":6000}]
[null,null,null,null,{"$f":"Таблица145[[#This Row],[Кол-во шт]]*Таблица145[[#This Row],[Цена за шт]]","v":0}]
[null,null,null,null,{"$f":"Таблица145[[#This Row],[Кол-во шт]]*Таблица145[[#This Row],[Цена за шт]]","v":0}]
[null,null,null,null,{"$f":"Таблица145[[#This Row],[Кол-во шт]]*Таблица145[[#This Row],[Цена за шт]]","v":0}]
[null,null,null,null,{"$f":"Таблица145[[#This Row],[Кол-во шт]]*Таблица145[[#This Row],[Цена за шт]]","v":0}]
[null,null,null,null,{"$f":"Таблица145[[#This Row],[Кол-во шт]]*Таблица145[[#This Row],[Цена за шт]]","v":0}]
[null,null,null,null,{"$f":"Таблица145[[#This Row],[Кол-во шт]]*Таблица145[[#This Row],[Цена за шт]]","v":0}]
[null,null,null,null,{"$f":"Таблица145[[#This Row],[Кол-во шт]]*Таблица145[[#This Row],[Цена за шт]]","v":0}]
[null,null,null,null,{"$f":"Таблица145[[#This Row],[Кол-во шт]]*Таблица145[[#This Row],[Цена за шт]]","v":0}]
[null,null,null,null,{"$f":"Таблица145[[#This Row],[Кол-во шт]]*Таблица145[[#This Row],[Цена за шт]]","v":0}]
[null,null,null,null,{"$f":"Таблица145[[#This Row],[Кол-во шт]]*Таблица145[[#This Row],[Цена за шт]]","v":0}]
[null,null,null,null,{"$f":"Таблица145[[#This Row],[Кол-во шт]]*Таблица145[[#This Row],[Цена за шт]]","v":0}]
[null,null,null,null,{"$f":"Таблица145[[#This Row],[Кол-во шт]]*Таблица145[[#This Row],[Цена за шт]]","v":0}]

{"sheet":"Фурнитура","index":3,"n_rows":18,"n_cols":6,"rows_kept":18,"cut":false,"hidden":false,"merged":[]}
[]
[]
["Наименование","Производитель","Размер. Шт","Цена за шт","Стоимость","Выбор +"]
["ручка","Россия 96 мм",1,100,{"$f":"Таблица1456[[#This Row],[Размер. Шт]]*Таблица1456[[#This Row],[Цена за шт]]","v":100}]
["петля","Италия 90 гр",1,200,{"$f":"Таблица1456[[#This Row],[Размер. Шт]]*Таблица1456[[#This Row],[Цена за шт]]","v":200},"+"]
["корзинка","Италия 300 мм",1,2000,{"$f":"Таблица1456[[#This Row],[Размер. Шт]]*Таблица1456[[#This Row],[Цена за шт]]","v":2000}]
[null,null,null,null,{"$f":"Таблица1456[[#This Row],[Размер. Шт]]*Таблица1456[[#This Row],[Цена за шт]]","v":0}]
[null,null,null,null,{"$f":"Таблица1456[[#This Row],[Размер. Шт]]*Таблица1456[[#This Row],[Цена за шт]]","v":0}]
[null,null,null,null,{"$f":"Таблица1456[[#This Row],[Размер. Шт]]*Таблица1456[[#This Row],[Цена за шт]]","v":0}]
[null,null,null,null,{"$f":"Таблица1456[[#This Row],[Размер. Шт]]*Таблица1456[[#This Row],[Цена за шт]]","v":0}]
[null,null,null,null,{"$f":"Таблица1456[[#This Row],[Размер. Шт]]*Таблица1456[[#This Row],[Цена за шт]]","v":0}]
[null,null,null,null,{"$f":"Таблица1456[[#This Row],[Размер. Шт]]*Таблица1456[[#This Row],[Цена за шт]]","v":0}]
[null,null,null,null,{"$f":"Таблица1456[[#This Row],[Размер. Шт]]*Таблица1456[[#This Row],[Цена за шт]]","v":0}]
[null,null,null,null,{"$f":"Таблица1456[[#This Row],[Размер. Шт]]*Таблица1456[[#This Row],[Цена за шт]]","v":0}]
[null,null,null,null,{"$f":"Таблица1456[[#This Row],[Размер. Шт]]*Таблица1456[[#This Row],[Цена за шт]]","v":0}]
[null,null,null,null,{"$f":"Таблица1456[[#This Row],[Размер. Шт]]*Таблица1456[[#This Row],[Цена за шт]]","v":0}]
[null,null,null,null,{"$f":"Таблица1456[[#This Row],[Размер. Шт]]*Таблица1456[[#This Row],[Цена за шт]]","v":0}]
[null,null,null,null,{"$f":"Таблица1456[[#This Row],[Размер. Шт]]*Таблица1456[[#This Row],[Цена за шт]]","v":0}]

{"sheet":"Спецификация","index":4,"n_rows":53,"n_cols":6,"rows_kept":53,"cut":false,"hidden":false,"merged":[[1,0,1,5],[51,1,51,2],[0,4,0,5],[52,4,52,5]]}
[null,"ИП Григорович А.В  Cntrl+ф",null,null,"   студия мебели \"SpektrHaus\"                т.55-22-85 пр-т Дзержинского 43                  "]
["Спецификация. Приложение к договору №_____"]
["№","Наименование","Производитель","Размер","Цена","Стоимость"]
[1]
[2]
[3]
[4]
[5]
[6]
[7]
[8]
[9]
[10]
[11]
[12]
[13]
[14]
[15]
[16]
[17]
[18]
[19]
[20]
[21]
[22]
[23]
[24]
[25]
[26]
[27]
[28]
[29]
[30]
[31]
[32]
[33]
[34]
[35]
[36]
[37]
[38]
[39]
[40]
[41,"Cтоимость изделия",null,null,null,{"$f":"SUM($F$4:$F$43)","v":0}]
[42,"Демонтаж"]
[43,"Монтаж",null,0.1,null,{"$f":"(F44*D46)","v":0}]
[44,"Доставка"]
[45,"Подъем",null,5,100,{"$f":"D48*E48","v":500}]
[46,"Стоимость доп. услуг",null,null,null,{"$f":"SUM($F$45:$F$48)","v":500}]
[47,"Итог:",null,null,null,{"$f":"F44+F49","v":500}]
[]
[null,"Со спецификацией ознакомлен и согласен",null,{"$f":"TODAY()","v":"2015-03-20"}]
[null,null,null,"дата","подпись/расшифровка"]